{"text_format":"1","workbook":"xlsx","n_sheets":1,"sheets":["Basisdaten"],"not_rendered":{"charts":0,"images":0,"macros":1,"external_links":0,"defined_names":6,"comments":1,"pivot_tables":0},"unopened":[],"bounds":{"document_bytes":16777216,"sheet_cells":100000,"rows_first":2000,"rows_last":500,"rows_between":2000,"halvings":0,"cell_chars":16384,"cell_head_chars":4096},"cells_cut":0,"cells_raw":0,"read":"whole","date_system":"1900"}

{"sheet":"Basisdaten","index":0,"n_rows":72,"n_cols":18,"rows_kept":72,"cut":false,"hidden":false,"merged":[]}
[null,null,null,"DRK-Kreisverband bzw. GmbH:"]
[null,"Wirtschaftsplan ",null,"Zeitraum:",2023]
[null,"Kreisverband/Träger:",{"$f":"$E$1","v":0},0,0,0,0,0,0,0,0,0,0,0,0,0,0,0]
[null,"Buchungskreis:","Gesamt -Final-","Gesamt","Konsolidierung","Kreisverb.","Kiga","ambulant","stationär","Tagespfl","Kurzzeitpfl","Altenwohn.","Rettungsd.","Sonstige 1","Sonstige 2","Sonstige 3","Sonstige 4","Abgleich MIS mit PB"]
[null,"Ergebnisrechnung"]
["1.","Umsatzerlöse aus satzungsmäßiger Betätigung"]
[null,"a) Erträge aus Beiträgen, Sammlungen und anderen Spenden",null,{"$f":"SUM(E7:Q7)","v":0},null,null,null,null,null,null,null,null,null,null,null,null,null,{"$f":"C7-E7-F7-G7-H7-I7-J7-K7-L7-M7-N7-O7-P7-Q7","v":0}]
[null,"b) Zuwendung zur Deckung eigener Verwaltungsaufwendungen bzw. zur Verwendung für satzungsgemäße Aufgaben",null,{"$f":"SUM(E8:Q8)","v":0},null,null,null,null,null,null,null,null,null,null,null,null,null,0]
[null,"    davon von DRK-Gliederungen",null,{"$f":"SUM(E9:Q9)","v":0},null,null,null,null,null,null,null,null,null,null,null,null,null,0]
[null,"c) Erträge aus Zweckbetrieben und anderen Betrieben",null,{"$f":"SUM(E10:Q10)","v":0},null,null,null,null,null,null,null,null,null,null,null,null,null,0]
[]
["2.","Erhöhung oder Verminderung des Bestands an fertigen und unfertigen Erzeugnissen",null,{"$f":"SUM(E12:Q12)","v":0},null,null,null,null,null,null,null,null,null,null,null,null,null,0]
["3. ","andere aktivierte Eigenleistungen",null,{"$f":"SUM(E13:Q13)","v":0},null,null,null,null,null,null,null,null,null,null,null,null,null,0]
[]
["4.","sonstige betriebliche Erträge"]
[null,"a) Erträge aus öffentlicher und nichtöffentlicher Förderung für Investitionen",null,{"$f":"SUM(E16:Q16)","v":0},null,null,null,null,null,null,null,null,null,null,null,null,null,0]
[null,"b) Erträge aus der Auflösung von Sonderposten",null,{"$f":"SUM(E17:Q17)","v":0},null,null,null,null,null,null,null,null,null,null,null,null,null,0]
[null,"c) Erträge aus  Erstattungen von Ausgleichsposten für Darlehens- u. Eigenmittelförderung",null,{"$f":"SUM(E18:Q18)","v":0},null,null,null,null,null,null,null,null,null,null,null,null,null,{"$f":"C18-E18-F18-G18-H18-I18-J18-K18-M18-#REF!-N18-O18-P18-Q18","v":{"$error":"#REF!"}}]
[null,"d) Übrige Erträge",null,{"$f":"SUM(E19:Q19)","v":0},null,null,null,null,null,null,null,null,null,null,null,null,null,0]
[]
["5.","Materialaufwand"]
[null,"a) Aufwendungen für Roh-, Hilfs- und Betriebsstoffe und für bezogene Waren ",null,{"$f":"SUM(E22:Q22)","v":0},null,null,null,null,null,null,null,null,null,null,null,null,null,0]
[null,"b) Aufwendungen für bezogene Leistungen",null,{"$f":"SUM(E23:Q23)","v":0},null,null,null,null,null,null,null,null,null,null,null,null,null,0]
[]
["6.","Personalaufwand"]
[null,"a) Löhne und Gehälter",null,{"$f":"SUM(E26:Q26)","v":0},null,null,null,null,null,null,null,null,null,null,null,null,null,0]
[null,"b) soziale Abgaben und Aufwendungen für Altersversorgung und für Unterstützung ",null,{"$f":"SUM(E27:Q27)","v":0},null,null,null,null,null,null,null,null,null,null,null,null,null,0]
[null,"c) Aufwand für Freiwilligendienste",null,{"$f":"SUM(E28:Q28)","v":0},null,null,null,null,null,null,null,null,null,null,null,null,null,0]
[null,"d) Vergütungen, Honorare",null,{"$f":"SUM(E29:Q29)","v":0},null,null,null,null,null,null,null,null,null,null,null,null,null,0]
[]
["7.","Abschreibungen"]
[null,"a) auf immaterielle Vermögensgegenstände des Anlagevermögens und Sachanlagen",null,{"$f":"SUM(E32:Q32)","v":0},null,null,null,null,null,null,null,null,null,null,null,null,null,0]
[null,"b) auf Vermögensgegenstände des Umlaufvermögens, soweit diese die in der Kapitalgesellschaft übblichen Abschreibungen überschreiten",null,{"$f":"SUM(E33:Q33)","v":0},null,null,null,null,null,null,null,null,null,null,null,null,null,0]
[]
["8.","sonstige betriebliche Aufwendungen"]
[null,"a) Mittelzuweisung an Dritte zur Verwendung für satzungsmäßige Aufgaben",null,{"$f":"SUM(E36:Q36)","v":0},null,null,null,null,null,null,null,null,null,null,null,null,null,0]
[null,"b) Aufwendungen aus der Zuführung zu den Sonderposten",null,{"$f":"SUM(E37:Q37)","v":0},null,null,null,null,null,null,null,null,null,null,null,null,null,0]
[null,"c) Aufwendungen aus der Zuführung aus Darlehensförderung",null,{"$f":"SUM(E38:Q38)","v":0},null,null,null,null,null,null,null,null,null,null,null,null,null,0]
[null,"d) Übrige Aufwendungen",null,{"$f":"SUM(E39:Q39)","v":0},null,null,null,null,null,null,null,null,null,null,null,null,null,0]
[]
["9.","Erträge aus Beteiligungen",null,{"$f":"SUM(E41:Q41)","v":0},null,null,null,null,null,null,null,null,null,null,null,null,null,0]
[null,"davon aus verbundenen Unternehmen (9.)",null,{"$f":"SUM(E42:Q42)","v":0},null,null,null,null,null,null,null,null,null,null,null,null,null,0]
[]
["10.","Erträge aus anderen Wertpapieren und Ausleihungen des Finanzanlagevermögens",null,{"$f":"SUM(E44:Q44)","v":0},null,null,null,null,null,null,null,null,null,null,null,null,null,{"$f":"C44-E44-F44-G44-H44-I44-J44-K44-L44-M44-N44-O44-P44-Q44","v":0}]
[null,"davon aus verbundenen Unternehmen (10.)",null,{"$f":"SUM(E45:Q45)","v":0},null,null,null,null,null,null,null,null,null,null,null,null,null,0]
[]
["11.","Sonstige Zinsen und Erträge",null,{"$f":"SUM(E47:Q47)","v":0},null,null,null,null,null,null,null,null,null,null,null,null,null,0]
[null,"davon aus verbundenen Unternehmen (11.)",null,{"$f":"SUM(E48:Q48)","v":0},null,null,null,null,null,null,null,null,null,null,null,null,null,0]
[]
["12.","Abschreibungen auf Finanzanlagen und Wertpapiere des Umlaufvermögens",null,{"$f":"SUM(E50:Q50)","v":0},null,null,null,null,null,null,null,null,null,null,null,null,null,0]
[]
["13.","Zinsen und ähnliche Aufwendungen",null,{"$f":"SUM(E52:Q52)","v":0},null,null,null,null,null,null,null,null,null,null,null,null,null,0]
[null,"davon aus verbundenen Unternehmen (13.)",null,{"$f":"SUM(E53:Q53)","v":0},null,null,null,null,null,null,null,null,null,null,null,null,null,0]
[]
["14.","Steuern vom Einkommen und vom Ertrag",null,{"$f":"SUM(E55:Q55)","v":0},null,null,null,null,null,null,null,null,null,null,null,null,null,0]
[]
["15.","Ergebnis nach Steuern",{"$f":"SUM(C7:C19)-C9-SUM(C21:C39)+C41+C44+C47-C50-C52-C55","v":0},{"$f":"SUM(D7:D19)-D9-SUM(D21:D39)+D41+D44+D47-D50-D52-D55","v":0},{"$f":"SUM(E7:E19)-E9-SUM(E21:E39)+E41+E44+E47-E50-E52-E55","v":0},0,0,0,0,0,0,0,0,0,0,0,0,{"$error":"#REF!"}]
[]
["16.","Sonstige Steuern",null,{"$f":"SUM(E59:Q59)","v":0},null,null,null,null,null,null,null,null,null,null,null,null,null,0]
[]
["17.","Jahresüberschuss/Jahresfehlbetrag",{"$f":"C57-C59","v":0},{"$f":"D57-D59","v":0},{"$f":"E57-E59","v":0},0,0,0,0,0,0,0,0,0,0,0,0,{"$error":"#REF!"}]
[]
["18.","Ergebnisvortrag",null,{"$f":"SUM(E63:Q63)","v":0},null,null,null,null,null,null,null,null,null,null,null,null,null,0]
[]
["19.","Entnahmen aus satzungsmäßigen Rücklagen",null,{"$f":"SUM(E65:Q65)","v":0},null,null,null,null,null,null,null,null,null,null,null,null,null,0]
[]
["20.","Einstellung in satzungsmäßige Rücklagen",null,{"$f":"SUM(E67:Q67)","v":0},null,null,null,null,null,null,null,null,null,null,null,null,null,0]
[]
["21.","Vermögensänderung (Bilanzgewinn/-verlust (-) )",{"$f":"SUM(C61+C63+C65-C67)","v":0},0,0,0,0,0,0,0,0,0,0,0,0,0,0,{"$error":"#REF!"}]
[]
[]
[null,"Anzahl Vollzeitstellen",null,{"$f":"SUM(E72:Q72)","v":0},null,null,null,null,null,null,null,null,null,null,null,null,null,0]